bitfinex-derivatives/quotes_SOLF0:USTF0_20260306
["timestamp","ask_amount","ask_price","bid_price","bid_amount"]
[1772779709534,3.99000499,88.435,88.39,2.97627624]
[1772779709733,3.99000499,88.435,88.39,6.46537761]
[1772779709929,3.67943754,88.429,88.376,10.183]
[1772779710237,3.67943754,88.432,88.39,2.97627624]
[1772779710631,3.67943754,88.432,88.381,3.49046775]
[1772779711027,3.86614435,88.409,88.363,10.184]
[1772779711436,3.86614435,88.409,88.36,6.43060963]
[1772779711639,3.86614435,88.409,88.361,3.45433339]
[1772779712229,2.97627624,88.4,88.361,3.45433339]
[1772779712429,3.86614435,88.399,88.35,2.97627624]
[1772779712931,3.86614435,88.399,88.346,3.45433339]
[1772779713128,2.97627624,88.39,88.346,3.45433339]
[1772779713737,3.86614435,88.389,88.346,3.45433339]
[1772779714641,3.86614435,88.379,88.331,3.4031147]
[1772779715938,3.86614435,88.369,88.321,10.189]
[1772779716136,3.86614435,88.369,88.322,3.41344473]
[1772779716631,2.97627624,88.38,88.331,3.41344473]
[1772779716836,3.86614435,88.398,88.35,2.97627624]
[1772779717039,3.86614435,88.429,88.38,2.97627624]
[1772779717244,3.86614435,88.429,88.371,3.39621057]
[1772779717543,3.86614435,88.429,88.39,2.97627624]
[1772779717940,3.86614435,88.429,88.371,3.39621057]
[1772779718443,3.86614435,88.429,88.371,13.57921057]
[1772779718643,3.86614435,88.429,88.371,3.39621057]
[1772779719245,10.177,88.426,88.371,3.39621057]
[1772779719542,3.86614435,88.429,88.38,2.97627624]
[1772779720445,3.86614435,88.429,88.381,3.47958857]
[1772779721541,3.86614435,88.429,88.38,2.97627624]
[1772779721845,3.86614435,88.429,88.381,3.39379997]
[1772779722440,2.97627624,88.42,88.372,10.183]
[1772779722639,2.97627624,88.42,88.373,3.39379997]
[1772779722844,3.86614435,88.429,88.37,2.97627624]
[1772779722845,3.86614435,88.429,88.376,13.57679997]
[1772779723041,3.86614435,88.419,88.37,2.97627624]
[1772779723244,3.86614435,88.399,88.35,2.97627624]
[1772779723744,3.86614435,88.389,88.34,2.97627624]
[1772779723944,3.86614435,88.389,88.331,3.39322824]
[1772779724445,10.47357889,88.448,88.272,20.39]
[1772779724446,3.86614435,88.388,88.333,3.39322824]
[1772779724740,3.86614435,88.409,88.347,13.57922824]
[1772779724937,3.86614435,88.409,88.348,3.37742229]
[1772779725943,10.181,88.394,88.348,3.37742229]
[1772779726146,3.86614435,88.409,88.348,3.37742229]
[1772779726640,3.86614435,88.409,88.358,10.185]
[1772779727445,3.86614435,88.406,88.349,10.186]
[1772779727746,3.86614435,88.406,88.332,3.40371983]
[1772779728140,3.86614435,88.383,88.332,3.40371983]
[1772779728740,3.86614435,88.383,88.334,13.59171983]
[1772779728944,3.86614435,88.383,88.335,3.40371983]
[1772779729843,3.86614435,88.383,88.342,10.187]
[1772779730047,3.86614435,88.383,88.335,3.40371983]
[1772779730646,3.86614435,88.383,88.329,10.188]
[1772779730847,3.86614435,88.381,88.321,3.40557771]
[1772779731746,10.182,88.379,88.322,10.189]
[1772779732057,3.86614435,88.378,88.322,10.189]
[1772779732251,3.86614435,88.378,88.306,3.43040887]
[1772779732647,3.86614435,88.365,88.306,3.43040887]
[1772779733053,3.86614435,88.365,88.308,3.42988767]
[1772779734755,3.86614435,88.365,88.319,10.189]
[1772779736960,3.86614435,88.365,88.319,13.63143262]
[1772779737159,3.86614435,88.385,88.336,10.187]
[1772779737359,3.86614435,88.385,88.337,3.44243262]
[1772779738556,3.86614435,88.399,88.351,10.186]
[1772779738751,3.86614435,88.399,88.33,7.44872681]
[1772779738752,3.86614435,88.399,88.352,3.44243262]
[1772779739260,3.86614435,88.399,88.357,10.185]
[1772779739560,3.86614435,88.399,88.358,3.45420861]
[1772779740160,10.178,88.417,88.364,10.184]
[1772779740161,3.64871994,88.416,88.364,10.184]
[1772779740562,3.64871994,88.416,88.365,3.44897535]
[1772779741258,3.64871994,88.416,88.368,10.184]
[1772779741951,3.64871994,88.413,88.333,3.4522836]
[1772779742149,3.64871994,88.409,88.311,3.4522836]
[1772779742356,3.64871994,88.407,88.311,3.4522836]
[1772779742552,3.64871994,88.405,88.311,3.4522836]
[1772779742860,3.64871994,88.403,88.311,3.4522836]
[1772779743162,3.64871994,88.388,88.333,10.188]
[1772779743459,3.64871994,88.388,88.311,3.4522836]
[1772779743460,3.64871994,88.386,88.311,3.4522836]
[1772779744357,3.64871994,88.384,88.311,3.4522836]
[1772779744660,3.64871994,88.381,88.324,10.189]
[1772779745255,3.64871994,88.381,88.311,3.4522836]
[1772779745756,3.64871994,88.379,88.311,3.4522836]
[1772779745964,3.64871994,88.362,88.306,10.191]
[1772779747054,3.64871994,88.359,88.297,10.192]
[1772779747764,3.64871994,88.352,88.296,3.44857933]
[1772779749761,10.186,88.351,88.298,10.192]
[1772779749952,3.64871994,88.35,88.281,3.44728719]
[1772779751763,13.83571994,88.336,88.281,3.44728719]
[1772779752564,13.83571994,88.336,88.282,13.6494969]
[1772779753663,3.64871994,88.336,88.287,3.46369883]
[1772779753865,3.64871994,88.352,88.287,3.46369883]
[1772779754358,3.64871994,88.372,88.305,3.46369883]
[1772779754564,20.351,88.442,88.264,20.392]
[1772779754565,3.64871994,88.387,88.32,7.44872681]
[1772779754763,3.64871994,88.387,88.321,3.46369883]
[1772779755467,3.64871994,88.385,88.326,3.49072451]
[1772779756761,3.64871994,88.385,88.33,10.188]
[1772779756961,3.64871994,88.385,88.331,3.49072451]
[1772779758768,3.64871994,88.385,88.339,10.187]
[1772779758965,3.64871994,88.385,88.34,3.48943126]
[1772779759161,3.64871994,88.404,88.34,3.48943126]
[1772779759761,3.64871994,88.402,88.344,10.186]
[1772779760266,3.64871994,88.398,88.344,10.186]
[1772779760563,3.64871994,88.398,88.324,3.48943126]
[1772779761867,3.64871994,88.396,88.334,3.48685347]
[1772779762769,3.64871994,88.392,88.334,3.48685347]
[1772779763767,3.64871994,88.388,88.334,3.48685347]
[1772779765872,3.64871994,88.382,88.334,3.48685347]
[1772779768179,3.64871994,88.378,88.334,3.48685347]
[1772779768679,10.183,88.376,88.319,10.189]
[1772779768874,3.64871994,88.375,88.319,10.189]
[1772779770380,3.76220948,88.37,88.319,10.189]
[1772779771877,10.184,88.366,88.32,3.43258277]
[1772779772178,13.94620948,88.366,88.32,3.43258277]
[1772779772680,3.76220948,88.365,88.32,3.43258277]
[1772779773273,3.76220948,88.362,88.301,3.4309179]
[1772779773480,3.76220948,88.36,88.301,3.4309179]
[1772779774384,3.76220948,88.36,88.312,10.19]
[1772779775077,3.76220948,88.36,88.316,13.61298176]
[1772779776983,3.76220948,88.376,88.328,3.42298176]
[1772779777685,3.76220948,88.376,88.33,10.188]
[1772779778488,3.76220948,88.374,88.3,3.42448935]
[1772779778688,3.76220948,88.372,88.3,3.42448935]
[1772779778889,3.76220948,88.37,88.3,3.42448935]
[1772779779190,3.76220948,88.368,88.3,3.42448935]
[1772779779487,3.76220948,88.366,88.3,3.42448935]
[1772779779684,7.44957925,88.38,88.3,3.42448935]
[1772779779685,3.76220948,88.364,88.3,3.42448935]
[1772779779885,10.186,88.352,88.301,13.61818975]
[1772779780081,13.94820948,88.352,88.301,13.61818975]
[1772779780282,13.94820948,88.352,88.304,10.191]
[1772779781291,3.76220948,88.346,88.302,3.42718975]
[1772779783489,3.76220948,88.344,88.294,10.192]
[1772779784090,3.76220948,88.34,88.252,3.33490173]
[1772779785591,3.76220948,88.32,88.265,3.32867629]
[1772779786887,3.76220948,88.318,88.265,3.32867629]
[1772779787092,3.76220948,88.318,88.25,3.33997472]
[1772779787390,3.76220948,88.316,88.25,3.33997472]
[1772779787789,3.76220948,88.316,88.259,10.196]
[1772779788290,3.76220948,88.304,88.25,3.33997472]
[1772779788493,3.76220948,88.299,88.25,6.32536246]
[1772779788695,3.76220948,88.299,88.25,3.33997472]
[1772779790294,3.76220948,88.299,88.252,3.29488049]
[1772779791094,2.98538774,88.31,88.261,3.29488049]
[1772779791289,6.74759722,88.31,88.261,3.29488049]
[1772779791485,13.95320948,88.307,88.261,3.29488049]
[1772779791795,3.76220948,88.299,88.246,3.34919334]
[1772779792698,3.76220948,88.289,88.231,3.34919334]
[1772779793290,13.95520948,88.288,88.237,10.199]
[1772779793494,3.76220948,88.287,88.237,10.199]
[1772779793897,3.76220948,88.299,88.241,3.33569224]
[1772779794397,6.74759722,88.29,88.241,3.33569224]
[1772779794699,3.76220948,88.29,88.241,3.33569224]
[1772779794993,3.76220948,88.289,88.23,2.98538774]
[1772779795198,3.76220948,88.289,88.231,3.34226232]
[1772779795794,3.76220948,88.289,88.237,3.34226232]
[1772779796592,3.76220948,88.289,88.24,13.54026232]
[1772779796797,3.76220948,88.289,88.241,3.34226232]
[1772779797801,3.76220948,88.289,88.243,10.198]
[1772779799097,3.76220948,88.289,88.241,3.34226232]
[1772779800395,3.8924749,88.278,88.226,3.32760497]
[1772779801499,10.194,88.277,88.226,3.32760497]
[1772779801698,3.8924749,88.269,88.212,3.33506231]
[1772779801897,3.8924749,88.259,88.212,3.33506231]
[1772779802296,3.8924749,88.249,88.197,3.33506231]
[1772779802701,3.8924749,88.249,88.201,10.203]
[1772779803902,3.8924749,88.249,88.208,10.202]
[1772779805600,2.98538774,88.25,88.197,3.33506231]
[1772779805806,3.8924749,88.259,88.201,3.33214694]
[1772779806809,10.198,88.245,88.201,3.33214694]
[1772779807209,3.8924749,88.244,88.201,3.33214694]
[1772779807707,3.8924749,88.239,88.185,3.33091758]
[1772779808812,10.199,88.232,88.185,3.33091758]
[1772779809706,3.8924749,88.231,88.18,2.98538774]
[1772779809906,3.8924749,88.231,88.186,10.205]
[1772779810507,2.98538774,88.24,88.193,3.31209104]
[1772779810702,14.0904749,88.244,88.193,3.31209104]
[1772779810907,3.8924749,88.243,88.193,3.31209104]
[1772779811610,14.0904749,88.24,88.193,3.31209104]
[1772779811912,3.8924749,88.239,88.193,3.31209104]
[1772779813907,3.8924749,88.237,88.19,2.98538774]
[1772779814115,3.8924749,88.237,88.183,10.205]
[1772779814314,3.8924749,88.229,88.183,10.205]
[1772779814506,3.8924749,88.229,88.185,10.205]
[1772779814710,3.8924749,88.229,88.186,3.34623684]
[1772779814910,3.8924749,88.229,88.19,2.98538774]
[1772779817510,3.8924749,88.229,88.189,10.204]
[1772779818615,10.2,88.228,88.181,10.205]
[1772779818919,3.8924749,88.227,88.181,10.205]
[1772779819121,3.8924749,88.227,88.19,6.32401618]
[1772779820313,3.8924749,88.227,88.188,10.204]
[1772779820516,3.8924749,88.227,88.177,3.33862844]
[1772779821817,3.8924749,88.227,88.18,2.98538774]
[1772779822023,3.8924749,88.227,88.181,3.29717321]
[1772779822423,3.8924749,88.227,88.186,13.50217321]
[1772779822619,3.8924749,88.227,88.187,3.29717321]
[1772779823322,3.8924749,88.227,88.183,10.205]
[1772779827324,3.8924749,88.226,88.176,3.19886186]
[1772779828223,3.8924749,88.223,88.178,10.205]
[1772779835031,10.199,88.233,88.186,3.19931357]
[1772779835529,3.76423655,88.232,88.186,3.19931357]
[1772779843623,3.76423655,88.232,88.191,3.17308779]
[1772779843828,8.56405843,88.241,88.191,3.17308779]
[1772779844029,13.96223655,88.242,88.191,3.17308779]
[1772779844228,3.76423655,88.24,88.191,3.17308779]
[1772779844428,8.56404942,88.241,88.191,3.17308779]
[1772779844429,3.76423655,88.238,88.191,3.17308779]
[1772779844732,3.76423655,88.235,88.195,10.204]
[1772779844932,3.76423655,88.235,88.191,3.17308779]
[1772779849335,3.76423655,88.233,88.191,3.17308779]
[1772779850526,3.76423655,88.233,88.187,10.204]
[1772779851735,3.76423655,88.233,88.187,13.35862599]
[1772779852031,3.76423655,88.233,88.189,10.204]
[1772779853729,3.76423655,88.231,88.189,10.204]
[1772779854938,3.76423655,88.231,88.195,10.204]
[1772779856338,10.54493667,88.253,88.145,20.419]
[1772779856339,3.76423655,88.229,88.171,3.15825003]
[1772779856537,3.76423655,88.227,88.171,3.15825003]
[1772779856738,3.76423655,88.225,88.171,3.15825003]
[1772779856934,8.59000639,88.224,88.171,3.15825003]
[1772779857141,8.59000639,88.223,88.171,3.15825003]
[1772779857335,3.76423655,88.237,88.191,3.15440167]
[1772779857640,8.59016608,88.236,88.191,3.15440167]
[1772779857835,8.59016608,88.235,88.191,3.15440167]
[1772779858133,8.59016608,88.234,88.191,3.15440167]
[1772779858339,12.35440263,88.233,88.191,3.15440167]
[1772779858538,8.59016608,88.232,88.191,3.15440167]
[1772779858734,3.76423655,88.245,88.194,3.15440167]
[1772779858940,10.198,88.246,88.194,3.15440167]
[1772779858941,3.76423655,88.243,88.194,3.15440167]
[1772779859133,3.76423655,88.241,88.194,3.15440167]
[1772779859337,3.76423655,88.239,88.194,3.15440167]
[1772779859533,3.76423655,88.237,88.194,3.15440167]
[1772779859736,2.99050513,88.24,88.194,3.15440167]
[1772779859737,3.76423655,88.235,88.194,3.15440167]
[1772779859940,12.48254973,88.234,88.194,3.15440167]
[1772779860143,12.48254973,88.233,88.194,3.15440167]
[1772779860342,3.91375102,88.231,88.194,3.15440167]
[1772779861239,3.91375102,88.231,88.192,10.204]
[1772779861240,3.91375102,88.219,88.16,2.99050513]
[1772779861443,3.91375102,88.199,88.141,3.13711369]
[1772779861638,3.91375102,88.197,88.141,3.13711369]
[1772779862841,3.91375102,88.197,88.147,10.209]
[1772779865147,3.91375102,88.189,88.141,3.13711369]
[1772779865346,3.91375102,88.189,88.131,3.27120493]
[1772779866339,3.91375102,88.189,88.14,2.99050513]
[1772779866543,3.91375102,88.169,88.105,3.27120493]
[1772779866744,3.91375102,88.169,88.124,10.212]
[1772779866941,3.91375102,88.169,88.125,3.27120493]
[1772779868245,3.91375102,88.208,88.131,3.2653901]
[1772779868446,3.91375102,88.189,88.131,3.2653901]
[1772779869545,2.99050513,88.18,88.131,3.2653901]
[1772779869755,3.91375102,88.179,88.131,3.2653901]
[1772779870045,3.91375102,88.179,88.121,3.29886648]
[1772779870855,3.91375102,88.176,88.121,3.29886648]
[1772779873952,3.91375102,88.176,88.123,3.24612051]
[1772779875046,3.91375102,88.176,88.124,10.212]
[1772779875253,3.91375102,88.176,88.13,2.99050513]
[1772779875550,3.91375102,88.197,88.141,3.23005523]
[1772779875753,2.99050513,88.19,88.141,3.23005523]
[1772779875953,3.91375102,88.189,88.141,3.23005523]
[1772779876350,3.91375102,88.188,88.141,3.23005523]
[1772779877354,3.91375102,88.188,88.09,11.41786808]
[1772779877355,3.91375102,88.188,88.13,2.99050513]
[1772779877754,3.91375102,88.186,88.13,2.99050513]
[1772779877954,3.91375102,88.179,88.13,2.99050513]
[1772779878857,3.91375102,88.174,88.131,3.22700857]
[1772779879854,10.207,88.162,88.131,3.22700857]
[1772779883064,3.91375102,88.199,88.151,3.169792]
[1772779883261,3.91375102,88.189,88.14,2.99050513]
[1772779883455,3.91375102,88.179,88.12,2.99050513]
[1772779883661,10.208,88.156,88.12,2.99050513]
[1772779885061,10.207,88.165,88.131,3.16375671]
[1772779887769,10.208,88.158,88.13,2.99050513]
[1772779888077,10.208,88.158,88.12,2.99050513]
[1772779888274,10.208,88.158,88.12,6.14574118]
[1772779888477,10.208,88.158,88.13,2.99377773]
[1772779889870,10.209,88.149,88.11,2.99377773]
[1772779890777,10.209,88.149,88.12,2.99377773]
[1772779891579,10.209,88.149,88.11,2.99377773]
[1772779892477,10.21,88.139,88.11,2.99377773]
[1772779894482,10.21,88.139,88.1,2.99377773]
[1772779894976,4.00395242,88.146,88.1,3.13572263]
[1772779895180,10.211,88.131,88.1,2.99377773]
[1772779896283,4.00395242,88.135,88.1,2.99377773]
[1772779896783,10.211,88.134,88.1,2.99377773]
[1772779897983,4.00395242,88.135,88.1,2.99377773]
[1772779898278,4.00395242,88.135,88.11,2.99377773]
[1772779899985,10.21,88.144,88.11,2.99377773]
[1772779900185,4.00395242,88.147,88.111,3.09661874]
[1772779901387,4.00395242,88.145,88.11,2.99377773]
[1772779902989,10.21,88.14,88.11,2.99377773]
[1772779903691,10.21,88.14,88.1,2.99377773]
[1772779904291,10.21,88.14,88.11,2.99377773]
[1772779908391,4.00395242,88.145,88.11,2.99377773]
[1772779909986,10.208,88.16,88.131,3.07044182]
[1772779910194,10.208,88.16,88.14,2.99377773]
[1772779910890,8.64718938,88.178,88.15,2.99377773]
[1772779911093,4.00395242,88.176,88.131,3.07044182]
[1772779911292,4.00395242,88.174,88.14,2.99377773]
[1772779911588,4.00395242,88.172,88.12,6.06731947]
[1772779911793,4.00395242,88.17,88.12,6.06731947]
[1772779912092,4.00395242,88.168,88.13,2.99377773]
[1772779912293,4.00395242,88.166,88.13,2.99377773]
[1772779912590,4.00395242,88.164,88.13,2.99377773]
[1772779912791,10.208,88.161,88.13,2.99377773]
[1772779914093,10.208,88.158,88.13,2.99377773]
[1772779914793,10.208,88.158,88.12,6.06731947]
[1772779916193,10.208,88.158,88.13,2.99377773]
[1772779918886,10.209,88.15,88.12,6.06731947]
[1772779919290,4.00395242,88.164,88.13,2.99377773]
[1772779920893,10.208,88.158,88.13,2.99377773]
[1772779921592,2.99377773,88.17,88.11,2.99377773]
[1772779921593,3.88596164,88.149,88.11,2.99377773]
[1772779921800,3.88596164,88.147,88.099,3.01886682]
[1772779922098,3.88596164,88.145,88.099,3.01886682]
[1772779922297,3.88596164,88.143,88.099,3.01886682]
[1772779922598,3.88596164,88.141,88.099,3.01886682]
[1772779922897,10.211,88.128,88.099,3.01886682]
[1772779923991,10.211,88.128,88.09,5.96107343]
[1772779924193,10.211,88.128,88.1,2.99377773]
[1772779925395,3.88596164,88.124,88.08,2.99377773]
[1772779925694,2.99377773,88.12,88.07,2.99377773]
[1772779925903,3.88596164,88.119,88.07,2.99377773]
[1772779926399,10.214,88.103,88.07,2.99377773]
[1772779927397,10.214,88.103,88.066,2.96465338]
[1772779927598,10.215,88.099,88.066,2.96465338]
[1772779927801,3.88596164,88.099,88.06,2.99377773]
[1772779928701,3.88596164,88.099,88.061,2.96135037]
[1772779928910,10.215,88.098,88.061,2.96135037]
[1772779929298,3.88596164,88.099,88.061,2.96135037]
[1772779929496,3.88596164,88.099,88.07,2.99377773]
[1772779929695,3.88596164,88.099,88.061,2.96135037]
[1772779929891,3.88596164,88.098,88.05,2.99377773]
[1772779930891,10.216,88.091,88.05,2.99377773]
[1772779931598,10.216,88.091,88.051,2.88401311]
[1772779936002,10.216,88.088,88.051,2.88401311]
[1772779936304,3.88596164,88.087,88.05,2.99377773]
[1772779938402,10.217,88.084,88.05,2.99377773]
[1772779939399,3.88596164,88.087,88.05,2.99377773]
[1772779939705,3.88596164,88.099,88.06,2.99377773]
[1772779939904,3.88596164,88.099,88.051,2.87475188]
[1772779940201,3.88596164,88.09,88.051,2.87475188]
[1772779941800,10.216,88.087,88.051,2.87475188]
[1772779945203,14.10196164,88.087,88.051,2.87475188]
[1772779945603,14.10096164,88.097,88.051,2.87475188]
[1772779945802,3.88596164,88.096,88.06,2.99377773]
[1772779946395,3.88596164,88.096,88.051,2.87475188]
[1772779946794,3.88596164,88.094,88.051,2.87475188]
[1772779947605,3.88596164,88.108,88.062,2.85783764]
[1772779947805,3.88596164,88.108,88.07,2.99377773]
[1772779948207,3.88596164,88.106,88.07,2.99377773]
[1772779949704,3.88596164,88.104,88.062,2.85783764]
[1772779950306,3.88596164,88.104,88.07,2.99377773]
[1772779950509,3.88596164,88.104,88.07,2.99785465]
[1772779952804,3.8357481,88.119,88.08,5.8752242]
[1772779953114,3.8357481,88.119,88.068,2.87656062]
[1772779954011,3.8357481,88.119,88.06,2.99785465]
[1772779954206,3.8357481,88.101,88.06,2.99785465]
[1772779954612,2.99785465,88.1,88.057,2.87656062]
[1772779954806,3.8357481,88.095,88.057,2.87656062]
[1772779955013,3.8357481,88.095,88.06,2.99785465]
[1772779961321,3.8357481,88.091,88.05,2.99785465]
[1772779962522,3.8357481,88.089,88.043,2.90798092]
[1772779963323,3.8357481,88.089,88.05,2.99785465]
[1772779963822,10.216,88.087,88.05,2.99785465]
[1772779964024,3.8357481,88.101,88.07,2.99785465]
[1772779965825,10.215,88.099,88.07,2.99785465]
[1772779966217,10.215,88.099,88.061,2.78597255]
[1772779967224,14.0507481,88.099,88.061,2.78597255]
[1772779967429,3.8357481,88.098,88.061,2.78597255]
[1772779968829,3.8357481,88.096,88.06,2.99785465]
[1772779969131,9.07929411,88.123,88.049,2.79653221]
[1772779969132,3.8357481,88.094,88.049,2.79653221]
[1772779969432,3.8357481,88.092,88.049,2.79653221]
[1772779969634,3.8357481,88.092,88.05,2.99785465]
[1772779970228,3.8357481,88.09,88.05,2.99785465]
[1772779971239,3.8357481,88.09,88.05,5.79604306]
[1772779971436,3.8357481,88.09,88.051,2.79818841]
[1772779971940,3.8357481,88.09,88.06,2.99785465]
[1772779972139,8.66561499,88.089,88.051,2.79818841]
[1772779972340,3.8357481,88.09,88.051,2.79818841]
[1772779972639,8.66561561,88.089,88.051,2.79818841]
[1772779972841,3.8357481,88.088,88.051,2.79818841]
[1772779975443,3.8357481,88.088,88.052,2.7946108]
[1772779976539,3.8357481,88.088,88.06,2.99785465]
[1772779978044,3.8357481,88.088,88.052,2.7946108]
[1772779981437,3.8357481,88.088,88.05,2.99785465]
[1772779981637,3.8357481,88.088,88.04,2.80672674]
[1772779981638,3.91457931,88.079,88.04,2.99785465]
[1772779981838,8.66681194,88.078,88.029,2.80672674]
[1772779982038,3.91457931,88.076,88.02,2.99785465]
[1772779982241,3.91457931,88.074,88.02,2.99785465]
[1772779982444,3.91457931,88.072,88.02,2.99785465]
[1772779982638,3.91457931,88.07,88.02,5.80458139]
[1772779982840,3.91457931,88.07,88.021,2.80672674]
[1772779983240,3.91457931,88.07,88.03,2.99785465]
[1772779983847,3.91457931,88.087,88.05,2.99785465]
[1772779984042,3.91457931,88.079,88.03,2.99785465]
[1772779984250,3.91457931,88.077,88.03,2.99785465]
[1772779984450,3.91457931,88.075,88.023,10.224]
[1772779984650,3.91457931,88.073,88.023,10.224]
[1772779985749,3.91457931,88.072,88.023,10.224]
[1772779986154,3.91457931,88.07,88.023,10.224]
[1772779989556,3.91457931,88.066,88.02,2.99785465]
[1772779990751,10.219,88.065,88.02,2.99785465]
[1772779991052,3.91457931,88.064,88.02,2.99785465]
[1772779992454,2.99785465,88.06,88.01,2.99785465]
[1772779992754,3.91800619,88.059,88.01,2.99785465]
[1772779993349,3.91800619,88.056,88.012,2.93701703]
[1772779993555,3.91800619,88.056,88.02,2.99785465]
[1772779996155,3.91800619,88.056,88.012,2.93701703]
[1772780000857,3.91800619,88.052,88.012,2.93701703]
[1772780001159,3.91800619,88.069,88.021,2.94092046]
[1772780001358,3.91800619,88.069,88.03,2.99785465]
[1772780002660,3.91800619,88.069,88.021,2.94092046]
[1772780002857,3.91800619,88.069,88.022,2.94092046]
[1772780004358,3.91800619,88.069,88.023,13.1946877]
[1772780004558,3.91800619,88.069,88.024,2.9706877]
[1772780004760,3.91800619,88.069,88.025,13.1936877]
[1772780005161,3.91800619,88.069,88.026,2.9702929]
[1772780008168,3.91800619,88.069,88.04,2.99785465]
[1772780008760,14.13500619,88.079,88.04,5.97169859]
[1772780009061,10.61982073,88.1,87.981,11.24788305]
[1772780009062,8.65186503,88.089,88.051,2.98078385]
[1772780009265,3.91800619,88.091,88.06,2.99785465]
[1772780010568,3.91800619,88.091,88.051,2.98078385]
[1772780010767,3.91800619,88.091,88.009,20.87976688]
[1772780010768,3.93190576,88.089,88.031,2.97652323]
[1772780011165,3.93190576,88.089,88.04,2.99785465]
[1772780011561,3.93190576,88.078,88.04,2.99785465]
[1772780011761,3.93190576,88.078,88.031,2.97652323]
[1772780012766,3.93190576,88.068,88.018,12.76914974]
[1772780013066,3.93190576,88.068,88.018,10.224]
[1772780013973,3.93190576,88.065,88.018,10.224]
[1772780014171,3.93190576,88.065,88.01,3.00047373]
[1772780014672,9.09016726,88.103,88.009,10.225]
[1772780014673,3.93190576,88.059,88.009,10.225]
[1772780015371,3.93190576,88.059,88.01,3.00047373]
[1772780015771,3.93190576,88.057,88.01,5.52321988]
[1772780015972,3.93190576,88.057,88.011,2.52274615]
[1772780023878,3.93190576,88.069,88.021,2.47385326]
[1772780024080,3.93190576,88.067,88.021,2.47385326]
[1772780024378,3.93190576,88.061,88.021,2.47385326]
[1772780024577,3.93190576,88.059,88.021,2.47385326]
[1772780024879,3.93190576,88.057,88.021,2.47385326]
[1772780025979,3.93190576,88.055,88.021,2.47385326]
[1772780027281,3.00047373,88.05,88.004,2.47296936]
[1772780027482,3.93190576,88.049,88.004,2.47296936]
[1772780028486,3.93190576,88.047,88.004,2.47296936]
[1772780028888,3.93190576,88.047,87.995,10.227]
[1772780029087,3.93190576,88.044,87.996,2.39313162]
[1772780029785,3.93190576,88.044,88.002,12.61913162]
[1772780030492,3.93190576,88.044,88.003,2.39313162]
[1772780038095,3.93190576,88.035,88.003,2.39313162]
[1772780040891,3.9368146,88.053,88.01,3.00047373]
[1772780041090,3.9368146,88.052,88.011,2.29519122]
[1772780041499,3.9368146,88.063,88.03,3.00047373]
[1772780041699,3.9368146,88.061,88.02,3.00047373]
[1772780042000,3.9368146,88.059,88.02,3.00047373]
[1772780042299,3.9368146,88.057,88.02,3.00047373]
[1772780042892,3.9368146,88.057,88.012,10.225]
[1772780043599,3.9368146,88.057,88.02,3.00047373]
[1772780045097,3.9368146,88.057,88.013,2.2811966]
[1772780047298,3.9368146,88.053,88.013,2.2811966]
[1772780047499,3.9368146,88.053,88.002,2.29939412]
[1772780047897,3.9368146,88.053,88.011,2.29939412]
[1772780048799,3.9368146,88.053,88.012,10.225]
[1772780050601,3.9368146,88.053,88.012,12.52384071]
[1772780051004,3.9368146,88.053,88.012,2.29884071]
[1772780052604,3.9368146,88.051,88.012,2.29884071]
[1772780054503,3.9368146,88.051,88.014,10.225]
[1772780054702,3.9368146,88.051,88.015,2.31382301]
[1772780055005,3.9368146,88.051,88.01,5.31429674]
[1772780056107,3.9368146,88.051,88.011,2.31301555]
[1772780056409,8.65497379,88.05,88.011,2.31301555]
[1772780056607,3.9368146,88.051,88.011,2.31301555]
[1772780056807,8.65496945,88.05,88.014,10.225]
[1772780057008,3.9368146,88.051,88.014,10.225]
[1772780057208,8.6551528,88.05,88.014,12.53872458]
[1772780057409,8.6551528,88.049,88.015,2.31372458]
[1772780057706,8.6551528,88.048,88.015,2.31372458]
[1772780058013,3.9368146,88.051,88.015,2.31372458]
[1772780058311,3.9368146,88.049,88.015,2.31372458]
[1772780058512,8.65874334,88.048,88.015,2.31372458]
[1772780058713,3.9368146,88.049,88.015,2.31372458]
[1772780058905,8.66023212,88.048,88.015,2.31372458]
[1772780059105,3.9368146,88.049,88.015,2.31372458]
[1772780059305,8.66036039,88.048,88.015,2.31372458]
[1772780059504,8.66036039,88.047,88.015,2.31372458]
[1772780059705,3.9368146,88.049,88.015,2.31372458]
[1772780059908,3.9368146,88.047,88.015,2.31372458]
[1772780060314,3.9368146,88.065,88.021,2.31175481]
[1772780060516,3.9368146,88.063,88.021,2.31175481]
[1772780060814,3.9368146,88.061,88.021,2.31175481]
[1772780061013,12.59857037,88.06,88.021,2.31175481]
[1772780061214,8.66175577,88.059,88.021,2.31175481]
[1772780061414,8.66175577,88.058,88.021,2.31175481]
[1772780061613,3.9368146,88.056,88.021,2.31175481]